{"text_format":"1","workbook":"xlsx","n_sheets":1,"sheets":["Лист1"],"not_rendered":{"charts":0,"images":0,"macros":1,"external_links":0,"defined_names":0,"comments":0,"pivot_tables":0},"unopened":[],"bounds":{"document_bytes":16777216,"sheet_cells":100000,"rows_first":2000,"rows_last":500,"rows_between":2000,"halvings":0,"cell_chars":16384,"cell_head_chars":4096},"cells_cut":0,"cells_raw":0,"read":"whole","date_system":"1900"}

{"sheet":"Лист1","index":0,"n_rows":6,"n_cols":8,"rows_kept":6,"cut":false,"hidden":false,"merged":[]}
["Объект","Было","Нужно так","Нужно так"]
[1,"14.03.2017\tЯнак В.А. Штыков В.\tНастройка. Юстировка. Синхронизация времени. Внешний бокс старый менять не стали, т.к. проводилось обучение и работа проводилась днём;\n\n10.08.2016\tЯнак В\tСинхронизировать время",{"$f":"ATREGEX($B2,\"(\\d|\\.){10}.+\",COLUMN(A$1))","v":"14.03.2017\tЯнак В.А. Штыков В.\tНастройка. Юстировка. Синхронизация времени. Внешний бокс старый менять не стали, т.к. проводилось обучение и работа проводилась днём;"},{"$f":"ATREGEX($B2,\"(\\d|\\.){10}.+\",COLUMN(B$1))","v":"10.08.2016\tЯнак В\tСинхронизировать время"},"","","",""]
[2,"14.09.2016\tПодрядчик\t\"Заменить АКБ, Комплексная диагностика средств связи, настроить\n\"",{"$f":"ATREGEX($B3,\"(\\d|\\.){10}.+\",COLUMN(A$1))","v":"14.09.2016\tПодрядчик\t\"Заменить АКБ, Комплексная диагностика средств связи, настроить"},{"$f":"ATREGEX($B3,\"(\\d|\\.){10}.+\",COLUMN(B$1))","v":""},{"$f":"ATREGEX($B3,\"(\\d|\\.){10}.+\",COLUMN(C$1))","v":""},{"$f":"ATREGEX($B3,\"(\\d|\\.){10}.+\",COLUMN(D$1))","v":""},{"$f":"ATREGEX($B3,\"(\\d|\\.){10}.+\",COLUMN(E$1))","v":""},{"$f":"ATREGEX($B3,\"(\\d|\\.){10}.+\",COLUMN(F$1))","v":""}]
[3,"01.03.2017\tБатухтин С.Ю. Пенджиев Т.\t\"ДТ не шлет даннные, просьба отправить бригаду \n\nЗаменили предохранитель. настроили\";\n\n14.09.2016\tПодрядчик\tСинхронизировать время, настроить","01.03.2017\tБатухтин С.Ю. Пенджиев Т.\t\"ДТ не шлет даннные, просьба отправить бригаду ","14.09.2016\tПодрядчик\tСинхронизировать время, настроить","","","",""]
[4,"14.09.2016\tПодрядчик\tЗасинхронизировать время","14.09.2016\tПодрядчик\tЗасинхронизировать время","","","","",""]
[5,"14.03.2017\tЯнак В.А. Штыков В.\tПересчитывает 1-ое, недосчитывает 2-ое направление;\n\n14.03.2017\tЯнак В.А. Штыков В.\tНастроил;\n\n10.09.2016\tБронсков Д\tСинхронизировать время","14.03.2017\tЯнак В.А. Штыков В.\tПересчитывает 1-ое, недосчитывает 2-ое направление;","14.03.2017\tЯнак В.А. Штыков В.\tНастроил;","10.09.2016\tБронсков Д\tСинхронизировать время","","",""]